bitfinex/quotes_ETHUSD_20241004
["timestamp","ask_amount","ask_price","bid_price","bid_amount"]
[1728067803434,4.1153,2430.0,2429.6,4.89568]
[1728067805065,4.526594,2430.1,2429.6,4.89567]
[1728067805265,4.526594,2430.1,2429.7,4.11567]
[1728067805472,0.71066205,2430.0,2429.7,4.11567]
[1728067807173,1.35594649,2430.0,2429.7,4.11567]
[1728067807539,1.35594649,2430.0,2429.7,8.23131]
[1728067807743,0.64528444,2430.0,2429.7,4.11564]
[1728067812182,0.64528444,2430.0,2429.8,4.931]
[1728067812388,0.64528444,2430.0,2429.9,4.11539]
[1728067814274,0.64528444,2430.0,2429.9,5.87651647]
[1728067814483,4.11398,2430.8,2430.4,0.8054]
[1728067814484,7.11407,2430.7,2430.4,0.8054]
[1728067814689,1.200295,2430.7,2430.4,4.91982]
[1728067814844,0.6451177,2430.7,2430.5,4.11437]
[1728067815051,0.6451177,2430.7,2430.6,4.11421]
[1728067815405,0.6451177,2430.7,2430.6,4.94241]
[1728067817599,0.8331,2431.2,2430.6,0.8282]
[1728067817748,0.64501518,2431.1,2430.9,4.92162]
[1728067817950,0.64501518,2431.1,2431.0,4.11353]
[1728067818884,0.64501518,2431.1,2430.9,4.92167]
[1728067819391,0.64501518,2431.1,2431.0,4.11353]
[1728067820870,0.64501518,2431.1,2431.0,5.01705]
[1728067821066,0.8128,2431.7,2431.0,5.01705]
[1728067821067,4.92516,2431.7,2431.2,4.1131]
[1728067821398,0.64485518,2431.4,2431.2,4.11309]
[1728067821694,0.64485518,2431.4,2431.3,4.90832]
[1728067821896,4.11236,2431.7,2431.3,0.7953]
[1728067822098,4.11268,2431.5,2431.1,4.90859]
[1728067822253,9.0383,2431.5,2431.1,0.7953]
[1728067822595,9.0383,2431.5,2431.0,5.01704]
[1728067822596,4.92548,2431.5,2431.0,4.11352]
[1728067822762,4.11294,2431.4,2431.0,4.11352]
[1728067823011,4.11294,2431.4,2430.9,0.7953]
[1728067823187,4.11309,2431.3,2430.9,6.129875]
[1728067823799,4.11309,2431.3,2430.9,4.90897]
[1728067823968,8.2259,2431.4,2430.9,4.90897]
[1728067824557,4.11306,2431.3,2430.8,11.41375]
[1728067824757,4.11298,2431.4,2430.8,11.41375]
[1728067824988,4.11312,2431.3,2430.8,11.41375]
[1728067825255,4.11312,2431.3,2430.8,15.52754]
[1728067825766,8.22596,2431.4,2430.9,4.11363]
[1728067826168,4.11305,2431.3,2430.9,4.11363]
[1728067826367,4.11319,2431.2,2430.8,11.41384]
[1728067826591,4.11319,2431.2,2430.8,4.11384]
[1728067828756,4.92449,2431.2,2430.8,4.11384]
[1728067829096,1.303749,2431.2,2430.7,0.7988]
[1728067829305,1.303749,2431.2,2430.6,19.72]
[1728067829306,4.11355,2431.0,2430.6,19.72]
[1728067829609,4.11391,2430.8,2430.4,4.91404]
[1728067829914,4.92503,2430.9,2430.5,4.11437]
[1728067831478,0.8113,2430.9,2430.6,4.11419]
[1728067831792,4.89686,2431.3,2430.8,4.9307]
[1728067831995,4.89686,2431.3,2430.9,4.11361]
[1728067833024,4.89681,2431.3,2430.8,0.817]
[1728067833214,4.11321,2431.2,2430.8,4.93084]
[1728067833413,5.014212,2431.2,2430.8,4.93084]
[1728067833768,4.11337,2431.1,2430.7,4.11403]
[1728067833970,4.86902,2431.0,2430.6,4.11406]
[1728067834327,4.1137,2430.9,2430.5,4.11434]
[1728067835406,4.86894,2431.0,2430.6,4.1142]
[1728067835622,5.8572712,2431.0,2430.6,4.1142]
[1728067836181,4.1137,2430.9,2430.5,4.11435]
[1728067836896,1.7437312,2431.0,2430.6,4.11408]
[1728067837112,0.7554,2431.0,2430.6,4.11408]
[1728067837618,4.11337,2431.1,2430.6,4.11408]
[1728067837619,4.11337,2431.1,2430.7,4.11393]
[1728067837792,4.11337,2431.1,2430.7,4.90023]
[1728067838416,5.827822,2431.2,2430.8,4.11387]
[1728067838750,4.92682,2431.2,2430.8,4.11375]
[1728067838906,4.11337,2431.1,2430.7,4.90025]
[1728067840953,4.92682,2431.2,2430.8,4.11377]
[1728067840954,0.8136,2431.2,2430.8,4.11377]
[1728067841114,4.11223,2431.8,2430.8,4.11377]
[1728067841115,4.88158,2431.5,2431.1,4.11325]
[1728067841311,4.11236,2431.7,2431.3,0.8189]
[1728067841541,4.11236,2431.7,2431.3,4.9319]
[1728067842126,4.11259,2431.6,2431.3,0.8189]
[1728067843451,0.7621,2431.5,2431.1,0.825]
[1728067843615,4.11321,2431.2,2430.8,11.41384]
[1728067843811,4.11321,2431.2,2430.8,4.11384]
[1728067844763,0.07894388,2431.1,2430.8,4.11384]
[1728067845116,8.2263,2431.3,2430.8,4.11384]
[1728067845318,0.07898341,2431.0,2430.8,4.11384]
[1728067845529,8.2263,2431.3,2430.8,4.11384]
[1728067845745,0.07888914,2430.9,2430.8,4.11384]
[1728067845975,4.1132,2431.2,2430.8,4.11384]
[1728067846770,0.07894015,2431.1,2430.8,4.11384]
[1728067847774,0.88914015,2431.1,2430.8,4.11384]
[1728067848753,0.88914015,2431.1,2430.9,4.11369]
[1728067849331,0.07894015,2431.1,2430.9,4.11369]
[1728067849546,4.91355,2431.3,2430.9,4.11369]
[1728067849836,6.19706077,2431.3,2430.9,4.11369]
[1728067850165,0.07917191,2431.2,2431.0,4.11346]
[1728067850375,4.1126,2431.6,2431.1,4.91956]
[1728067850674,0.7526,2431.7,2431.3,4.11213]
[1728067850976,4.86495,2431.7,2431.3,4.10653]
[1728067851330,4.86495,2431.7,2431.3,4.10573]
[1728067851530,4.86495,2431.7,2431.3,4.10413]
[1728067851736,4.86495,2431.7,2431.3,4.09853]
[1728067851971,9.875124,2431.7,2431.3,4.11299]
[1728067852263,9.875164,2431.7,2431.3,4.11219]
[1728067852465,5.762674,2431.7,2431.3,4.10979]
[1728067852772,5.762674,2431.7,2431.3,4.10499]
[1728067853140,5.762674,2431.7,2431.3,4.10339]
[1728067853335,5.762674,2431.7,2431.3,4.09939]
[1728067853564,5.762674,2431.7,2431.3,4.09699]
[1728067854039,5.762674,2431.7,2431.3,4.09539]
[1728067854240,5.762674,2431.7,2431.3,4.09059]
[1728067854477,5.762674,2431.7,2431.3,4.08899]
[1728067854777,8.97738,2431.7,2431.3,4.08899]
[1728067855077,8.97738,2431.7,2431.2,4.11306]
[1728067855078,4.11252,2431.6,2431.2,4.11306]
[1728067855279,0.7526,2431.7,2431.2,4.11306]
[1728067855436,4.86497,2431.7,2431.3,4.113]
[1728067855642,1.650314,2431.7,2431.1,4.91956]
[1728067855973,4.11277,2431.5,2431.1,4.91956]
[1728067856382,4.11252,2431.6,2431.1,0.8062]
[1728067856673,4.11269,2431.5,2431.1,4.91948]
[1728067857473,8.22546,2431.5,2431.1,4.91948]
[1728067857679,5.1002674,2431.5,2431.1,4.91948]
[1728067858713,5.1002674,2431.5,2431.1,0.8062]
[1728067858988,4.11294,2431.4,2431.0,4.11353]
[1728067859170,0.8013,2431.3,2431.0,4.11353]
[1728067859575,0.079224,2431.2,2431.0,4.11353]
[1728067859776,4.11294,2431.4,2431.0,4.11353]
[1728067859977,0.07903808,2431.1,2431.0,4.11353]
[1728067860293,4.11294,2431.4,2431.0,4.11353]
[1728067860492,0.07927241,2431.3,2431.1,4.11335]
[1728067860727,4.91905,2431.5,2431.1,4.11335]
[1728067861023,0.07914134,2431.2,2430.9,4.88042]
[1728067861186,4.11304,2431.3,2430.9,8.99404]
[1728067861381,0.07910683,2431.1,2430.9,4.88042]
[1728067861582,4.11304,2431.3,2430.9,4.88042]
[1728067862127,0.079224,2431.2,2430.9,4.88042]
[1728067862298,4.11304,2431.3,2430.9,8.99404]
[1728067862497,0.07901516,2431.1,2430.9,8.99404]
[1728067862699,4.11304,2431.3,2430.9,4.88042]
[1728067863030,4.11304,2431.3,2430.9,4.88041]
[1728067863327,0.07635329,2431.2,2430.9,4.88041]
[1728067863487,0.07635329,2431.2,2430.9,8.99403]
[1728067863819,4.11304,2431.3,2430.9,4.88041]
[1728067864032,0.07630487,2431.1,2430.9,4.88041]
[1728067864335,0.07355886,2431.0,2430.9,4.88041]
[1728067864626,4.11304,2431.3,2430.9,4.88041]
[1728067864835,0.07355886,2431.0,2430.9,4.88041]
[1728067865003,4.11304,2431.3,2430.9,4.88041]
[1728067865203,0.07098798,2431.0,2430.9,4.88041]
[1728067865412,4.11304,2431.3,2430.9,4.88041]
[1728067865618,0.0708963,2431.0,2430.9,4.88041]
[1728067866091,4.11325,2431.2,2430.9,0.7668]
[1728067866288,4.11325,2431.2,2430.7,4.87628]
[1728067866289,9.07805924,2431.1,2430.7,4.87628]
[1728067866587,9.07805924,2431.1,2430.5,24.68560532]
[1728067866588,4.11356,2431.0,2430.5,24.59666]
[1728067866822,4.11389,2430.8,2430.5,0.7624]
[1728067867034,4.11389,2430.8,2430.3,4.94517]
[1728067867035,4.11404,2430.7,2430.3,4.94517]
[1728067867321,0.06840278,2430.7,2430.4,4.11446]
[1728067867529,4.88911,2430.8,2430.4,4.11446]
[1728067867701,0.06829783,2430.6,2430.4,4.11446]
[1728067867901,4.88911,2430.8,2430.4,4.11446]
[1728067868201,0.06841502,2430.7,2430.4,4.11446]
[1728067868413,4.88911,2430.8,2430.4,4.11446]
[1728067868610,0.06822907,2430.6,2430.4,4.11446]
[1728067868927,0.06813478,2430.5,2430.4,4.11446]
[1728067869232,4.88911,2430.8,2430.4,4.11446]
[1728067869536,1.72923963,2430.8,2430.4,4.11446]
[1728067869833,0.06834627,2430.7,2430.4,4.11446]
[1728067870042,4.18238627,2430.7,2430.3,4.94517]
[1728067870184,4.11404,2430.7,2430.3,4.94517]
[1728067870391,0.06837552,2430.6,2430.3,9.05977]
[1728067870931,0.06825203,2430.5,2430.3,9.05977]
[1728067871117,4.88913,2430.8,2430.4,4.11454]
[1728067871319,5.84317563,2430.8,2430.4,4.11454]
[1728067872050,1.72924563,2430.8,2430.4,4.11454]
[1728067872259,5.84318563,2430.8,2430.3,9.05974]
[1728067872408,5.84318563,2430.8,2430.3,4.9451]
[1728067872606,4.1143,2430.6,2430.2,4.11487]
[1728067872836,5.11005956,2430.6,2430.2,4.11487]
[1728067873114,4.92038,2430.5,2430.1,4.11503]
[1728067873510,4.92038,2430.5,2429.9,20.4888]
[1728067873715,4.11457,2430.4,2429.9,4.88412]
[1728067873917,5.49850973,2430.4,2429.9,4.88412]
[1728067874144,4.11473,2430.3,2429.9,4.88412]
[1728067874319,4.11473,2430.3,2429.9,0.7688]
[1728067874639,0.06538247,2430.2,2429.9,0.7688]
[1728067874844,0.06538247,2430.2,2430.0,4.11515]
[1728067875006,4.11461,2430.4,2430.0,4.11515]
[1728067875204,0.06512657,2430.1,2430.0,4.11515]
[1728067875430,5.11768196,2430.4,2430.0,4.11515]
[1728067875746,9.23234196,2430.4,2430.0,4.11515]
[1728067875952,0.06536105,2430.3,2430.0,4.11515]
[1728067876160,0.06536105,2430.3,2430.2,4.11488]
[1728067876311,7.11379,2430.9,2430.2,4.11488]
[1728067876312,4.11379,2430.9,2430.2,4.91428]
[1728067876658,0.06309832,2430.8,2430.6,4.91353]
[1728067876954,0.7628,2431.0,2430.6,4.91353]
[1728067876955,4.8764,2431.0,2430.6,4.91353]
[1728067877248,0.06302696,2430.7,2430.6,4.91353]
[1728067877453,4.8764,2431.0,2430.6,4.91353]
[1728067877871,0.06312383,2430.9,2430.6,4.91353]
[1728067878007,0.06312383,2430.9,2430.6,4.91352]
[1728067881359,0.06312383,2430.9,2430.7,4.11395]
[1728067881674,4.11335,2431.2,2430.8,4.11387]
[1728067881834,4.1131,2431.3,2430.9,4.11368]
[1728067882137,5.312707,2431.3,2430.9,4.11368]
[1728067882333,5.95765828,2431.3,2430.9,4.11368]
[1728067882770,4.11321,2431.2,2430.7,4.11387]
[1728067883336,4.11336,2431.1,2430.7,4.11387]
[1728067883661,5.95765828,2431.3,2430.7,4.11387]
[1728067883852,4.11322,2431.2,2430.8,4.11382]
[1728067886773,4.11337,2431.1,2430.7,4.11387]
[1728067887138,0.06261349,2431.0,2430.7,4.11387]
[1728067887340,0.06261349,2431.0,2430.7,8.22784]
[1728067887578,0.06261349,2431.0,2430.8,4.11385]
[1728067887751,4.1132,2431.2,2430.8,4.11385]
[1728067887953,5.4581819,2431.2,2430.7,4.11387]
[1728067888139,0.06275359,2431.1,2430.7,4.11387]
[1728067888676,0.06275359,2431.1,2430.8,4.11382]
[1728067890576,0.06275359,2431.1,2430.9,4.1137]
[1728067890885,0.06275359,2431.1,2431.0,4.89013]
[1728067891046,0.06275359,2431.1,2431.0,5.790513]
[1728067891380,0.64495128,2431.3,2431.0,5.790513]
[1728067891381,0.64495128,2431.3,2431.2,4.11319]
[1728067891941,4.9441,2431.6,2431.2,4.11319]
[1728067892166,4.1126,2431.6,2431.2,4.11319]
[1728067892352,8.2249,2431.7,2431.3,4.11301]
[1728067892549,5.01806,2431.7,2431.0,5.790363]
[1728067892775,4.11253,2431.6,2431.2,4.11312]
[1728067897665,3.0,2432.1,2430.8,4.11383]
[1728067897666,0.8053,2432.1,2431.7,4.11218]
[1728067897868,0.8053,2432.1,2431.8,4.11216]
[1728067898074,1.36147995,2432.1,2431.8,4.11216]
[1728067898639,1.36147995,2432.1,2431.7,4.88928]
[1728067898640,5.47327995,2432.1,2431.7,4.88928]
[1728067898882,4.11186,2432.0,2431.6,4.1125]
[1728067899253,5.47325995,2432.1,2431.6,4.1125]
[1728067899460,9.58501995,2432.1,2431.6,4.1125]
[1728067899764,4.11188,2432.0,2431.6,4.1125]
[1728067899965,4.11201,2431.9,2431.3,4.86933]
[1728067900165,8.22481,2431.7,2431.2,11.41318]
[1728067900365,4.11252,2431.6,2431.2,4.11318]
[1728067900768,4.11235,2431.7,2431.3,4.11302]
[1728067902461,4.11235,2431.7,2431.3,4.11295]
[1728067903881,0.8057,2431.8,2431.4,4.11274]
[1728067904668,0.05611013,2431.7,2431.4,4.11274]
[1728067905074,0.8057,2431.8,2431.4,4.11274]
[1728067905279,0.05601593,2431.6,2431.4,4.11274]
[1728067905489,0.8057,2431.8,2431.4,4.11274]
[1728067905716,0.05594463,2431.5,2431.4,4.11274]
[1728067905982,0.05596754,2431.5,2431.4,4.11274]
[1728067906289,4.91797,2431.8,2431.3,4.11294]
[1728067906580,0.491797,2431.7,2431.3,8.22584]
[1728067906783,0.05633996,2431.7,2431.3,8.22584]
[1728067906997,4.91797,2431.8,2431.3,8.22584]
[1728067907283,0.05608051,2431.6,2431.3,4.1129]
[1728067907482,4.16854763,2431.7,2431.3,4.1129]
[1728067907690,0.05603213,2431.5,2431.3,4.1129]
[1728067907898,0.8057,2431.8,2431.3,4.1129]
[1728067908055,0.05575387,2431.4,2431.3,4.1129]
[1728067908256,4.91789,2431.8,2431.4,4.11283]
[1728067909880,4.91789,2431.8,2431.1,4.86961]
[1728067910067,4.11241,2431.7,2431.3,4.113]
[1728067915579,4.1122,2431.8,2431.4,4.92492]
[1728067915966,1.40004947,2432.2,2431.7,4.1122]
[1728067916299,4.75644947,2432.2,2431.8,4.11203]
[1728067916807,0.64484947,2432.2,2431.9,4.11194]
[1728067917029,0.64484947,2432.2,2431.8,4.11215]
[1728067917633,4.75647947,2432.2,2431.8,4.11215]
[1728067919491,0.0543008,2432.1,2431.8,4.11215]
[1728067920752,4.1659708,2432.1,2431.7,4.11231]
[1728067920891,0.7515,2432.0,2431.4,20.4916]
[1728067921288,0.7515,2432.0,2431.3,7.3]
[1728067921289,4.11235,2431.7,2431.3,4.11295]
[1728067921484,0.8289,2431.6,2431.3,4.11295]
[1728067921809,0.88304631,2431.6,2431.3,4.11295]
[1728067922337,4.11276,2431.5,2431.1,4.11325]
[1728067922694,0.05414189,2431.4,2431.1,4.11325]
[1728067923408,4.11276,2431.5,2431.1,4.11325]
[1728067923989,5.85223763,2431.6,2431.1,4.11325]
[1728067924207,0.05412745,2431.5,2431.1,4.11325]
[1728067925951,0.05412745,2431.5,2431.3,4.11301]
[1728067926239,0.05412745,2431.5,2431.4,4.89035]
[1728067926538,4.11211,2431.9,2431.5,4.11265]
[1728067926850,4.1122,2431.8,2431.4,4.89026]
[1728067927502,4.91147,2432.0,2431.4,4.89026]
[1728067927704,4.11203,2431.9,2431.5,4.11268]
[1728067928045,0.7996,2432.0,2431.6,4.11244]
[1728067928198,1.44004947,2432.2,2431.7,4.11233]
[1728067928393,5.55157947,2432.2,2431.7,4.88383]
[1728067929254,4.11168,2432.1,2431.7,4.88383]
[1728067931006,5.55163947,2432.2,2431.8,4.11213]
[1728067931799,0.64484947,2432.2,2431.9,4.86688]
[1728067931999,0.64484947,2432.2,2432.0,4.11182]
[1728067932258,0.05053852,2432.1,2432.0,4.11182]
[1728067932741,4.11123,2432.4,2432.0,4.11182]
[1728067932944,0.05043122,2432.1,2432.0,4.11182]
[1728067933146,4.11123,2432.4,2432.0,4.11182]
[1728067933306,0.05050479,2432.1,2432.0,4.19171707]
[1728067933506,4.11123,2432.4,2432.0,4.19171707]
[1728067933707,0.04868962,2432.1,2432.0,4.11182]
[1728067933907,4.11123,2432.4,2432.0,4.11182]
[1728067934142,0.04863897,2432.1,2432.0,4.11182]
[1728067934319,4.11123,2432.4,2432.0,4.11182]
[1728067934839,0.04896056,2432.3,2432.0,4.11182]
[1728067935650,0.04896056,2432.3,2432.2,4.1115]
[1728067935945,4.11056,2432.8,2432.3,4.11132]
[1728067935946,4.11067,2432.7,2432.3,4.11132]
[1728067936106,4.87076,2432.8,2432.3,4.11132]
[1728067936301,4.87076,2432.8,2432.4,4.11114]
[1728067936507,0.7602,2432.8,2432.5,4.11097]
[1728067936819,1.45193605,2433.0,2432.2,0.8203]
[1728067937008,4.11079,2432.7,2432.2,4.93177]
[1728067937347,4.11067,2432.7,2432.2,0.8203]
[1728067937509,4.11067,2432.7,2432.3,4.1113]
[1728067938112,4.88497,2432.7,2432.3,4.1113]
[1728067938732,0.7743,2432.7,2432.3,4.11122]
[1728067939246,4.9395,2432.9,2432.4,4.11104]
[1728067939610,4.9395,2432.9,2432.5,4.11096]
[1728067939810,4.75488605,2433.0,2432.7,0.767]
[1728067940008,0.64463605,2433.0,2432.7,0.767]
[1728067940241,4.75486605,2433.0,2432.7,0.767]
[1728067940511,5.72426566,2433.0,2432.7,0.767]
[1728067940738,5.72426566,2433.0,2432.6,4.11074]
[1728067941435,5.72426566,2433.0,2432.5,4.86616]
[1728067941636,4.9162,2432.9,2432.4,4.11108]
[1728067941836,6.36111534,2432.9,2432.4,4.11108]
[1728067942015,4.1105,2432.8,2432.4,4.11108]
[1728067942551,4.91665,2432.6,2432.1,4.93692]
[1728067942756,9.02702,2432.8,2432.3,4.11124]
[1728067943321,4.11084,2432.6,2432.2,4.11148]
[1728067943471,4.11066,2432.7,2432.2,8.22281]
[1728067943634,5.15784153,2432.7,2432.2,8.22281]
[1728067943829,0.04949707,2432.6,2432.2,4.11133]
[1728067944371,4.11089,2432.6,2432.2,4.11133]
[1728067944873,4.11089,2432.6,2432.1,0.8254]
[1728067944874,4.95405874,2432.5,2432.1,4.11166]
[1728067945044,4.60665587,2432.4,2431.9,31.132]
[1728067945369,4.60665587,2432.4,2431.9,31.13191]
[1728067945370,0.04928335,2432.3,2431.9,31.13191]
[1728067945533,0.04928335,2432.3,2431.9,4.11191]
[1728067946039,0.04928335,2432.3,2431.9,8.22383]
[1728067946377,5.11669227,2432.3,2431.9,4.11191]
[1728067946583,4.86755,2432.1,2431.7,4.11226]
[1728067946867,4.86755,2432.1,2431.6,4.11247]
[1728067946868,4.16079452,2432.0,2431.6,4.11247]
[1728067947025,4.16079452,2432.0,2431.5,4.11257]
[1728067947226,0.04895452,2432.0,2431.5,4.11257]
[1728067947461,0.04895452,2432.0,2431.6,4.11241]
[1728067947669,4.16093452,2432.0,2431.6,4.11241]
[1728067947864,4.11202,2431.9,2431.5,4.11266]
[1728067948068,0.04890459,2431.8,2431.5,4.11266]
[1728067948291,4.16108459,2431.8,2431.4,4.91992]
[1728067948929,0.04890459,2431.8,2431.5,4.11267]
[1728067952177,0.04890459,2431.8,2431.6,4.1125]
[1728067952535,4.60350445,2432.0,2431.6,4.1125]
[1728067952736,0.04866102,2431.7,2431.6,4.1125]
[1728067952954,4.60350445,2432.0,2431.6,4.1125]
[1728067953157,0.04866102,2431.7,2431.5,4.11267]
[1728067953355,8.22378,2432.0,2431.5,8.22527]
[1728067953572,0.04858973,2431.6,2431.5,8.22527]
[1728067953743,8.22378,2432.0,2431.5,8.22527]
[1728067953954,4.11212,2431.9,2431.5,4.11258]
[1728067954170,4.1610152,2431.9,2431.5,4.11258]
[1728067954556,4.1610152,2431.9,2431.4,0.8071]
[1728067954761,0.7682,2431.7,2431.4,4.11284]
[1728067954989,0.04863555,2431.6,2431.4,4.11284]
[1728067955668,0.7682,2431.7,2431.4,4.11284]
[1728067955889,0.04856682,2431.6,2431.4,4.11284]
[1728067956182,0.7682,2431.7,2431.4,4.11284]
[1728067956507,0.04858973,2431.6,2431.4,4.11284]
[1728067957004,0.04858973,2431.6,2431.3,8.22586]
[1728067957158,0.04858973,2431.6,2431.3,8.22587]
[1728067957683,0.04858973,2431.6,2431.3,4.11293]
[1728067958332,0.7682,2431.7,2431.4,4.11285]
[1728067958499,0.7682,2431.7,2431.3,4.11293]
[1728067958702,0.04676058,2431.6,2431.2,4.11316]
[1728067959000,0.04657133,2431.5,2431.2,4.11316]
[1728067959975,1.256239,2431.7,2431.3,4.113]
[1728067959976,0.7682,2431.7,2431.3,4.113]
[1728067960402,0.04671136,2431.6,2431.3,4.113]
[1728067961868,4.15924136,2431.6,2431.2,4.11316]
[1728067962470,4.15924136,2431.6,2431.2,8.22626]
[1728067962797,4.11253,2431.6,2431.2,8.22626]
[1728067962980,4.11253,2431.6,2431.2,4.1131]
[1728067963170,0.04661716,2431.5,2431.2,4.1131]
[1728067964003,0.04661716,2431.5,2431.2,8.2262]
[1728067964402,0.04661716,2431.5,2431.3,4.113]
[1728067964709,4.88058,2431.7,2431.3,4.113]
[1728067964909,0.04647712,2431.4,2431.3,4.113]
[1728067965106,4.88058,2431.7,2431.3,4.113]
[1728067965488,0.04666554,2431.6,2431.3,4.113]
[1728067966016,0.04666554,2431.6,2431.2,4.1131]
[1728067966185,0.04666554,2431.6,2431.3,4.113]
[1728067966373,0.04666554,2431.6,2431.2,4.11306]
[1728067967234,0.04666554,2431.6,2431.3,4.11301]
[1728067969108,0.04666554,2431.6,2431.1,0.7965]
[1728067969300,0.04666554,2431.6,2431.3,4.113]
[1728067969493,4.88058,2431.7,2431.3,4.113]
[1728067969694,0.04661794,2431.5,2431.3,4.113]
[1728067969893,4.88058,2431.7,2431.3,4.113]
[1728067970098,0.04654664,2431.4,2431.3,4.113]
[1728067970581,4.88058,2431.7,2431.3,4.113]
[1728067970781,0.04673505,2431.6,2431.3,4.113]
[1728067981317,4.15931505,2431.6,2431.2,4.11319]
[1728067981716,4.11258,2431.6,2431.2,4.11319]
[1728067982830,4.11269,2431.5,2431.1,9.02309]
[1728067983134,0.04481047,2431.4,2431.2,4.11319]
[1728067983508,4.11254,2431.6,2431.2,4.11319]
[1728067983708,0.04473917,2431.3,2431.2,4.11319]
[1728067983908,4.88058,2431.7,2431.3,4.11299]
[1728067984406,0.04324371,2431.6,2431.3,4.11299]
[1728067984631,4.15580371,2431.6,2431.2,4.11317]
[1728067986146,0.04324371,2431.6,2431.3,4.11299]
[1728067986909,4.15578371,2431.6,2431.2,4.11315]
[1728067987444,4.11254,2431.6,2431.2,4.11315]
[1728067987650,4.11254,2431.6,2431.2,4.11312]
[1728067987854,4.11254,2431.6,2431.2,8.22621]
[1728067988009,5.87034922,2431.4,2431.0,4.11352]
[1728067988210,4.95624786,2431.5,2431.1,4.11329]
[1728067988454,0.0430197,2431.3,2431.0,4.11349]
[1728067988634,4.11286,2431.4,2431.0,4.11349]
[1728067988810,0.04294839,2431.2,2431.0,4.11349]
[1728067989023,5.24000632,2431.4,2431.0,4.11349]
[1728067989219,0.04287707,2431.1,2431.0,4.11349]
[1728067989418,4.11286,2431.4,2431.0,4.11349]
[1728067989623,0.04287707,2431.1,2431.0,4.11349]
[1728067989822,4.11286,2431.4,2431.0,4.11349]
[1728067990023,0.04278541,2431.1,2431.0,4.11349]
[1728067990251,4.11286,2431.4,2431.0,4.11349]
[1728067990450,0.04278541,2431.1,2431.0,4.11349]
[1728067990757,4.11286,2431.4,2431.0,4.11349]
[1728067991238,0.0430197,2431.3,2431.0,4.11346]
[1728067992255,0.0430197,2431.3,2431.0,4.11345]
[1728067994258,0.0430197,2431.3,2430.8,4.93525]
[1728067994456,0.0430197,2431.3,2431.0,4.11351]
[1728067995975,0.0430197,2431.3,2430.8,4.93532]
[1728067996132,4.1560497,2431.3,2430.9,4.11368]
[1728067996340,4.11303,2431.3,2430.9,4.11368]
[1728067996549,0.04278354,2431.2,2430.9,4.11368]
[1728067996849,4.11303,2431.3,2430.9,4.11368]
[1728067997054,0.7647,2431.1,2430.8,4.11382]
[1728067997228,0.04264089,2431.0,2430.8,4.11382]
[1728067997425,0.04264089,2431.0,2430.9,4.1137]
[1728067997807,4.87773,2431.3,2430.9,4.1137]
[1728067998011,0.0428752,2431.2,2430.9,4.1137]
[1728067998243,9.9544029,2431.3,2430.9,4.1137]
[1728067998411,0.0428224,2431.2,2430.9,4.1137]
[1728067998615,9.9544029,2431.3,2430.9,4.1137]
[1728067998811,0.0428224,2431.2,2430.9,4.1137]
[1728067999041,5.8412729,2431.3,2430.7,4.114]
[1728067999248,4.1134,2431.1,2430.7,4.114]
[1728067999430,4.80474442,2431.2,2430.8,4.11386]
[1728067999431,0.04267975,2431.0,2430.8,4.11386]
[1728067999844,4.11326,2431.2,2430.8,4.11386]
[1728067999845,0.04249301,2430.9,2430.8,4.11386]
[1728068000059,4.11326,2431.2,2430.8,4.11386]
[1728068000237,0.04268151,2431.1,2430.8,4.11386]
[1728068006575,0.04268151,2431.1,2431.0,6.65646922]
[1728068006867,0.64494388,2431.8,2431.0,6.65646922]
[1728068006868,4.75715388,2431.8,2431.2,8.22621]
[1728068007066,0.04021975,2431.7,2431.3,4.1129]
[1728068007230,4.67225736,2431.7,2431.3,4.1129]
[1728068007431,0.04012555,2431.6,2431.3,4.1129]
[1728068007977,4.91287555,2431.6,2431.2,4.11319]
[1728068008567,4.11275,2431.5,2431.0,0.7855]
[1728068008765,4.11303,2431.3,2430.9,4.11359]
[1728068009068,0.03980785,2431.2,2431.0,4.11345]
[1728068009269,0.8327,2431.4,2431.1,4.11336]
[1728068009477,0.03990208,2431.3,2431.2,4.91387]
[1728068009633,4.11253,2431.6,2431.2,4.91387]
[1728068009974,0.04010317,2431.5,2431.2,4.91387]
[1728068011465,0.04010317,2431.5,2431.2,0.8007]
[1728068011702,0.04010317,2431.5,2431.1,4.11326]
[1728068012288,0.04010317,2431.5,2431.2,4.11319]
[1728068012493,0.04010317,2431.5,2431.0,0.8261]
[1728068012494,0.04010317,2431.5,2431.3,4.113]
[1728068012663,4.75716388,2431.8,2431.4,5.27925]
[1728068012868,0.04005284,2431.7,2431.4,4.86795]
[1728068013068,4.75716388,2431.8,2431.4,4.86795]
[1728068013290,0.04030286,2431.7,2431.5,4.11266]
[1728068013569,0.64494388,2431.8,2431.5,4.11266]
[1728068013767,0.03911764,2431.6,2431.4,0.7551]
[1728068013967,4.75714388,2431.8,2431.4,5.53050992]
[1728068014388,0.04018007,2431.7,2431.4,5.53050992]
[1728068014780,4.11235,2431.7,2431.4,1.41765992]
[1728068014976,0.04013169,2431.6,2431.4,1.41765992]
[1728068016507,0.04013169,2431.6,2431.4,0.66255992]
[1728068016803,0.04013169,2431.6,2431.3,4.113]
[1728068017005,4.15265169,2431.6,2431.2,9.04006]
[1728068017183,0.04013169,2431.6,2431.2,9.04006]
[1728068017507,4.11235,2431.7,2431.2,9.04006]
[1728068017800,0.8337901,2431.6,2431.2,10.20494145]
[1728068018162,0.7937,2431.6,2431.2,10.20494145]
[1728068018367,0.7937,2431.6,2430.9,19.72]
[1728068018368,0.0400188,2431.5,2430.9,21.38621532]
[1728068018602,0.0400188,2431.5,2431.1,4.11335]
[1728068018603,4.1527888,2431.5,2431.1,4.11335]
[1728068018807,4.11277,2431.5,2430.9,0.8149]
[1728068019036,4.11285,2431.4,2431.0,4.37072392]